{"text_format":"3","workbook":"xlsx","n_sheets":8,"sheets":["Árbol genealógico","Padres","Abuelos paternos","Abuelos maternos","Bisabuelos paternos 1","Bisabuelos paternos 2","Bisabuelos maternos 1","Bisabuelos maternos 2"],"not_rendered":{"images":16,"defined_names":97},"read":"whole","date_system":"1900"}

{"sheet":"Árbol genealógico","index":0,"n_rows":34,"n_cols":14,"rows_kept":34,"merged":[[2,1,3,4],[3,13,3,14],[4,10,4,11],[5,13,5,14],[6,7,6,8],[7,13,7,14],[8,10,8,11],[9,13,9,14],[10,4,10,5],[11,13,11,14],[12,10,12,11],[13,13,13,14],[14,7,14,8],[15,13,15,14],[16,10,16,11],[17,13,17,14],[18,1,18,2],[19,13,19,14],[20,10,20,11],[21,13,21,14],[22,7,22,8],[23,13,23,14],[24,10,24,11],[25,13,25,14],[26,4,26,5],[27,13,27,14],[28,10,28,11],[29,13,29,14],[30,7,30,8],[31,13,31,14],[32,10,32,11],[33,13,33,14]]}
[]
[null,"Smith - Jensen"]
[null,"ÁRBOL GENEALÓGICO"]
[{"$nulls":13},"Tatarabuelo paterno 1 "]
[{"$nulls":10},"Bisabuelo paterno 1   "]
[{"$nulls":13},"Tatarabuela paterna 1 "]
[{"$nulls":7},"Ronaldo Smith Jr."]
[{"$nulls":13},"Tatarabuelo paterno 2 "]
[{"$nulls":10},"Bisabuela paterna 1 "]
[{"$nulls":13},"Tatarabuela paterna 2 "]
[{"$nulls":4},"Brian Smith"]
[{"$nulls":13},"Tatarabuelo paterno 3 "]
[{"$nulls":10},"Bisabuelo paterno 2   "]
[{"$nulls":13},"Tatarabuela paterna 3 "]
[{"$nulls":7},"Laure Goudiard du Mesnil"]
[{"$nulls":13},"Tatarabuelo paterno 4 "]
[{"$nulls":10},"Bisabuela paterna 2 "]
[{"$nulls":13},"Tatarabuela paterna 4 "]
[null,"Samantha Smith"]
[{"$nulls":13},"Tatarabuelo materno 1 "]
[{"$nulls":10},"Bisabuelo materno 1  "]
[{"$nulls":13},"Tatarabuela materna 1 "]
[{"$nulls":7},"Thomas Søndergaard Jensen"]
[{"$nulls":13},"Tatarabuelo materno 2 "]
[{"$nulls":10},"Bisabuela materna 1 "]
[{"$nulls":13},"Tatarabuelo materno 3 "]
[{"$nulls":4},"Christiane Rønnow Jensen"]
[{"$nulls":13},"Tatarabuela materna 3 "]
[{"$nulls":10},"Bisabuelo materno 2  "]
[{"$nulls":13},"Tatarabuela materna 3 "]
[{"$nulls":7},"Charlotte Weiss"]
[{"$nulls":13},"Tatarabuelo materno 4 "]
[{"$nulls":10},"Bisabuela materna 2 "]
[{"$nulls":13},"Tatarabuela materna 4 "]

{"sheet":"Padres","index":1,"n_rows":32,"n_cols":8,"rows_kept":32,"merged":[[9,1,9,3],[9,5,9,7],[10,2,10,3],[10,6,10,7],[11,2,11,3],[11,6,11,7],[12,2,12,3],[12,6,12,7],[13,2,13,3],[14,2,14,3],[14,6,14,7],[15,2,15,3],[15,6,15,7],[19,1,19,7],[20,1,20,7],[21,1,21,7],[22,1,22,7],[23,1,23,7],[24,1,24,7],[25,1,25,7]]}
[null,{"$f":"NombreÁrbol","v":"Smith - Jensen"}]
[null,"ÁRBOL GENEALÓGICO"]
[]
[]
[null,"PADRES DEL PADE",{"$nulls":3},"PADRES DE LA MADRE"]
[]
[]
[]
[]
[null,{"$f":"\"Padre: \"&Padre","v":"Padre: Brian Smith"},{"$nulls":3},{"$f":"\"Madre: \"&Madre","v":"Madre: Christiane Rønnow Jensen"}]
[null,null,"NACIMIENTO",{"$nulls":3},"NACIMIENTO"]
[null,null,"11 feb 1948",{"$nulls":3},"13 feb 1953"]
[null,null,"Eugene, Illinois, EE. UU.",{"$nulls":3},"Dinamarca"]
[null,null,"DECESO",{"$nulls":3},"DECESO"]
[]
[]
[]
[]
[null," Notas"]
[null,"Casados en Springfield, Indiana en nov 1980"]
{"$rows_empty":7}
[null,"HIJOS","NOMBRE","RELACIÓN","NACIMIENTO","LUGAR DE NACIMIENTO","DECESO","LUGAR DE DECESO"]
[null,null,{"$f":"Inicio","v":"Samantha Smith"},"Hija","23 ene 1983","Illinois"]
[null,null,"Brian Smith","Hijo","20 abr 1985","Illinois"]
[null,null,"John Smith","Hijo","19 ene 1987","Illinois"]
[null,null,"Tony Smith","Hijo","11 oct 1990","Illinois"]

{"sheet":"Abuelos paternos","index":2,"n_rows":33,"n_cols":8,"rows_kept":33,"merged":[[9,1,9,3],[9,5,9,7],[10,2,10,3],[10,6,10,7],[11,2,11,3],[11,6,11,7],[12,2,12,3],[12,6,12,7],[13,2,13,3],[14,2,14,3],[14,6,14,7],[15,2,15,3],[15,6,15,7],[20,1,20,7],[21,1,21,7],[22,1,22,7],[23,1,23,7],[24,1,24,7],[25,1,25,7],[26,1,26,7]]}
[null,{"$f":"NombreÁrbol","v":"Smith - Jensen"}]
[null,"ÁRBOL GENEALÓGICO"]
[]
[]
[null,"PADRES DEL PADE",{"$nulls":3},"PADRES DE LA MADRE"]
[]
[]
[]
[]
[null,{"$f":"\"Padre: \"&AbueloPaterno","v":"Padre: Ronaldo Smith Jr."},{"$nulls":3},{"$f":"\"Madre: \"&AbuelaPaterna","v":"Madre: Laure Goudiard du Mesnil"}]
[null,null,"NACIMIENTO",{"$nulls":3},"NACIMIENTO"]
[null,null,"3 mar 1906",{"$nulls":3},"11 nov 1925"]
[null,null,"Eugene, Illinois, EE. UU.",{"$nulls":3},"Francia"]
[null,null,"DECESO",{"$nulls":3},"DECESO"]
[null,null,"17 jun 1991",{"$nulls":3},"4 mar 2005"]
[null,null,"Nevie, Indiana, EE. UU.",{"$nulls":3},"Nevie, Indiana, EE. UU."]
[]
[]
[]
[null," Notas"]
[null,"Casados en Eugene, Illinois en abr 1940."]
[null,"Laure emigró a EE. UU. en 1955 con sus padres y se nacionalizó en 1960."]
[]
[]
[]
[]
[]
[]
[null,"HIJOS","NOMBRE","RELACIÓN","NACIMIENTO","LUGAR DE NACIMIENTO","DECESO","LUGAR DE DECESO"]
[null,null,{"$f":"Padre","v":"Brian Smith"},"Hijo",{"$f":"IF(FechaNacimientoPadre<>0,FechaNacimientoPadre,\"\")","v":"11 feb 1948"},{"$f":"IF(UbicNacimientoAbueloPaterno<>0,UbicNacimientoAbueloPaterno,\"\")","v":"Eugene, Illinois, EE. UU."},{"$f":"IF(DecesoPadre<>0,DecesoPadre,\"\")","v":""},{"$f":"IF(UbicDecesoPadre<>0,UbicDecesoPadre,\"\")","v":""}]
[null,null,"Ben Smith","Hijo","28 mar 1952","Nevie, Indiana"]
[null,null,"Denise Smith","Hija","30 mar 1955","Nevie, Indiana"]
[null,null,"Infant Smith","Hijo","20 nov 1960","Nevie, Indiana","23 nov 1960","Nevie, Indiana"]

{"sheet":"Abuelos maternos","index":3,"n_rows":32,"n_cols":8,"rows_kept":32,"merged":[[9,1,9,3],[9,5,9,7],[10,2,10,3],[10,6,10,7],[11,2,11,3],[11,6,11,7],[12,2,12,3],[12,6,12,7],[13,2,13,3],[14,2,14,3],[14,6,14,7],[15,2,15,3],[15,6,15,7],[20,1,20,7],[21,1,21,7],[22,1,22,7],[23,1,23,7],[24,1,24,7],[25,1,25,7],[26,1,26,7]]}
[null,{"$f":"NombreÁrbol","v":"Smith - Jensen"}]
[null,"ÁRBOL GENEALÓGICO"]
[]
[]
[null,"PADRES DEL PADE",{"$nulls":3},"PADRES DE LA MADRE"]
[]
[]
[]
[]
[null,{"$f":"\"Padree: \"&AbueloMaterno","v":"Padree: Thomas Søndergaard Jensen"},{"$nulls":3},{"$f":"\"Madre: \"&AbuelaMaterna","v":"Madre: Charlotte Weiss"}]
[null,null,"NACIMIENTO",{"$nulls":3},"NACIMIENTO"]
[null,null,"13 dic 1926",{"$nulls":3},"27 sep 1932"]
[null,null,"Dinamarca",{"$nulls":3},"Dinamarca"]
[null,null,"DECESO",{"$nulls":3},"DECESO"]
[null,null,"24 ene 2006"]
[null,null,"Neivie, Indiana, EE. UU."]
[]
[]
[]
[null," Notas"]
{"$rows_empty":8}
[null,"HIJOS","NOMBRE","RELACIÓN","NACIMIENTO","LUGAR DE NACIMIENTO","DECESO","LUGAR DE DECESO"]
[null,null,{"$f":"Madre","v":"Christiane Rønnow Jensen"},"Hija",{"$f":"IF(NacimientoMadre<>0,NacimientoMadre,\"\")","v":"13 feb 1953"},{"$f":"IF(UbicNacimientoMadre<>0,UbicNacimientoMadre,\"\")","v":"Dinamarca"},{"$f":"IF(DecesoMadre<>0,DecesoMadre,\"\")","v":""},{"$f":"IF(UbicDecesoAbuelaPaterna<>0,UbicDecesoAbuelaPaterna,\"\")","v":""}]
[null,null,"Erik Jensen","Hijo","18 oct 1956","Nevie, Indiana","17 sep 1970","Nevie, Indiana"]
[null,null,"Henrik Jensen","Hijo","2 ene 1957","Nevie, Indiana"]

{"sheet":"Bisabuelos paternos 1","index":4,"n_rows":35,"n_cols":8,"rows_kept":35,"merged":[[9,1,9,3],[9,5,9,7],[10,2,10,3],[10,6,10,7],[11,2,11,3],[11,6,11,7],[12,2,12,3],[12,6,12,7],[13,2,13,3],[14,2,14,3],[14,6,14,7],[15,2,15,3],[15,6,15,7],[20,1,20,7],[21,1,21,7],[22,1,22,7],[23,1,23,7],[24,1,24,7],[25,1,25,7],[26,1,26,7]]}
[null,{"$f":"NombreÁrbol","v":"Smith - Jensen"}]
[null,"ÁRBOL GENEALÓGICO"]
[]
[]
[null,"PADRES DEL PADE",{"$nulls":3},"PADRES DE LA MADRE"]
[]
[]
[]
[]
[null,{"$f":"\"Padre: \"&BisabueloPaterno1","v":"Padre: Bisabuelo paterno 1   "},{"$nulls":3},{"$f":"\"Madre: \"&BisabuelaPaterna1","v":"Madre: Bisabuela paterna 1 "}]
[null,null,"NACIMIENTO",{"$nulls":3},"NACIMIENTO"]
[]
[]
[null,null,"DECESO",{"$nulls":3},"DECESO"]
[]
[]
[]
[]
[]
[null," Notas"]
{"$rows_empty":8}
[null,"HIJOS","NOMBRE","RELACIÓN","NACIMIENTO","LUGAR DE NACIMIENTO","DECESO","LUGAR DE DECESO"]
[null,null,{"$f":"AbueloPaterno","v":"Ronaldo Smith Jr."},"Hijo",{"$f":"IF(NacimientoAbueloPaterno<>0,NacimientoAbueloPaterno,\"\")","v":"3 mar 1906"},{"$f":"IF(UbicNacimientoAbueloPaterno_<>0,UbicNacimientoAbueloPaterno_,\"\")","v":"Eugene, Illinois, EE. UU."},{"$f":"IF(DecesoAbueloPaterno<>0,DecesoAbueloPaterno,\"\")","v":"17 jun 1991"},{"$f":"IF(UbicDecesoAbueloPaterno<>0,UbicDecesoAbueloPaterno,\"\")","v":"Nevie, Indiana, EE. UU."}]
[null,null,"Ronaldo Smith Jr."]
[null,null,"Ronaldo Smith Jr."]
[null,null,"Ronaldo Smith Jr."]
[null,null,"Ronaldo Smith Jr."]
[null,null,"Ronaldo Smith Jr."]

{"sheet":"Bisabuelos paternos 2","index":5,"n_rows":35,"n_cols":8,"rows_kept":35,"merged":[[9,1,9,3],[9,5,9,7],[10,2,10,3],[10,6,10,7],[11,2,11,3],[11,6,11,7],[12,2,12,3],[12,6,12,7],[13,2,13,3],[14,2,14,3],[14,6,14,7],[15,2,15,3],[15,6,15,7],[20,1,20,7],[21,1,21,7],[22,1,22,7],[23,1,23,7],[24,1,24,7],[25,1,25,7],[26,1,26,7]]}
[null,{"$f":"NombreÁrbol","v":"Smith - Jensen"}]
[null,"ÁRBOL GENEALÓGICO"]
[]
[]
[null,"PADRES DEL PADE",{"$nulls":3},"PADRES DE LA MADRE"]
[]
[]
[]
[]
[null,{"$f":"\"Padre: \"&BisabueloPaterno2","v":"Padre: Bisabuelo paterno 2   "},{"$nulls":3},{"$f":"\"Madre: \"&BisabuelaPaterna2","v":"Madre: Bisabuela paterna 2 "}]
[null,null,"NACIMIENTO",{"$nulls":3},"NACIMIENTO"]
[]
[]
[null,null,"DECESO",{"$nulls":3},"DECESO"]
[]
[]
[]
[]
[]
[null," Notas"]
{"$rows_empty":8}
[null,"HIJOS","NOMBRE","RELACIÓN","NACIMIENTO","LUGAR DE NACIMIENTO","DECESO","LUGAR DE DECESO"]
[null,null,{"$f":"AbuelaPaterna","v":"Laure Goudiard du Mesnil"},"Hija",{"$f":"IF(NacimientoAbuelaPaterna<>0,NacimientoAbuelaPaterna,\"\")","v":"11 nov 1925"},{"$f":"IF(UbicNacimientoAbuelaPaterna<>0,UbicNacimientoAbuelaPaterna,\"\")","v":"Francia"},{"$f":"IF(DecesoAbuelaPaterna<>0,DecesoAbuelaPaterna,\"\")","v":"4 mar 2005"},{"$f":"IF(DecesoAbueloPaterno_<>0,DecesoAbueloPaterno_,\"\")","v":"Nevie, Indiana, EE. UU."}]
[null,null,"Laure Goudiard du Mesnil"]
[null,null,"Laure Goudiard du Mesnil"]
[null,null,"Laure Goudiard du Mesnil"]
[null,null,"Laure Goudiard du Mesnil"]
[null,null,"Laure Goudiard du Mesnil"]

{"sheet":"Bisabuelos maternos 1","index":6,"n_rows":35,"n_cols":8,"rows_kept":35,"merged":[[9,1,9,3],[9,5,9,7],[10,2,10,3],[10,6,10,7],[11,2,11,3],[11,6,11,7],[12,2,12,3],[12,6,12,7],[13,2,13,3],[14,2,14,3],[14,6,14,7],[15,2,15,3],[15,6,15,7],[20,1,20,7],[21,1,21,7],[22,1,22,7],[23,1,23,7],[24,1,24,7],[25,1,25,7],[26,1,26,7]]}
[null,{"$f":"NombreÁrbol","v":"Smith - Jensen"}]
[null,"ÁRBOL GENEALÓGICO"]
[]
[]
[null,"PADRES DEL PADE",{"$nulls":3},"PADRES DE LA MADRE"]
[]
[]
[]
[]
[null,{"$f":"\"Padre: \"&BisabueloMaterno1","v":"Padre: Bisabuelo materno 1  "},{"$nulls":3},{"$f":"\"Madre: \"&BisabuelaMaterna1","v":"Madre: Bisabuela materna 1 "}]
[null,null,"NACIMIENTO",{"$nulls":3},"NACIMIENTO"]
[]
[]
[null,null,"DECESO",{"$nulls":3},"DECESO"]
[]
[]
[]
[]
[]
[null," Notas"]
{"$rows_empty":8}
[null,"HIJOS","NOMBRE","RELACIÓN","NACIMIENTO","LUGAR DE NACIMIENTO","DECESO","LUGAR DE DECESO"]
[null,null,{"$f":"AbueloMaterno","v":"Thomas Søndergaard Jensen"},"Hijo",{"$f":"IF(FechaNacimientoAbueloMaterno<>0,FechaNacimientoAbueloMaterno,\"\")","v":"13 dic 1926"},{"$f":"IF(UbicNacimientoAbueloMaterno<>0,UbicNacimientoAbueloMaterno,\"\")","v":"Dinamarca"},{"$f":"IF(DecesoAbueloMaterno<>0,DecesoAbueloMaterno,\"\")","v":"24 ene 2006"},{"$f":"IF(UbicDecesoAbueloMaterno<>0,UbicDecesoAbueloMaterno,\"\")","v":"Neivie, Indiana, EE. UU."}]
[null,null,"Thomas Søndergaard Jensen"]
[null,null,"Thomas Søndergaard Jensen"]
[null,null,"Thomas Søndergaard Jensen"]
[null,null,"Thomas Søndergaard Jensen"]
[null,null,"Thomas Søndergaard Jensen"]

{"sheet":"Bisabuelos maternos 2","index":7,"n_rows":35,"n_cols":8,"rows_kept":35,"merged":[[9,1,9,3],[9,5,9,7],[10,2,10,3],[10,6,10,7],[11,2,11,3],[11,6,11,7],[12,2,12,3],[12,6,12,7],[13,2,13,3],[14,2,14,3],[14,6,14,7],[15,2,15,3],[15,6,15,7],[20,1,20,7],[21,1,21,7],[22,1,22,7],[23,1,23,7],[24,1,24,7],[25,1,25,7],[26,1,26,7]]}
[null,{"$f":"NombreÁrbol","v":"Smith - Jensen"}]
[null,"ÁRBOL GENEALÓGICO"]
[]
[]
[null,"PADRES DEL PADE",{"$nulls":3},"PADRES DE LA MADRE"]
[]
[]
[]
[]
[null,{"$f":"\"Padre: \"&BisabueloMaterno2","v":"Padre: Bisabuelo materno 2  "},{"$nulls":3},{"$f":"\"Madre: \"&BisabuelaMaterna2","v":"Madre: Bisabuela materna 2 "}]
[null,null,"NACIMIENTO",{"$nulls":3},"NACIMIENTO"]
[]
[]
[null,null,"DECESO",{"$nulls":3},"DECESO"]
[]
[]
[]
[]
[]
[null," Notas"]
{"$rows_empty":8}
[null,"HIJOS","NOMBRE","RELACIÓN","NACIMIENTO","LUGAR DE NACIMIENTO","DECESO","LUGAR DE DECESO"]
[null,null,{"$f":"AbuelaMaterna","v":"Charlotte Weiss"},"Hija",{"$f":"IF(NacimientoAbuelaMaterna<>0,NacimientoAbuelaMaterna,\"\")","v":"27 sep 1932"},{"$f":"IF(UbicNacimientoAbuelaMaterna<>0,UbicNacimientoAbuelaMaterna,\"\")","v":"Dinamarca"},{"$f":"IF(DecesoAbuelaMaterna<>0,DecesoAbuelaMaterna,\"\")","v":""},{"$f":"IF(UbicDecesoAbuelaMaterna<>0,UbicDecesoAbuelaMaterna,\"\")","v":""}]
[null,null,"Charlotte Weiss"]
[null,null,"Charlotte Weiss"]
[null,null,"Charlotte Weiss"]
[null,null,"Charlotte Weiss"]
[null,null,"Charlotte Weiss"]